[Event "Titled Tuesday Blitz May 23 Late 2023"]
[White "Wadsworth, Matthew J"]
[Black "Maksimovic, Bojan"]
[WhiteFideId "415804"]
[BlackFideId "14408120"]
[WhiteElo "2347"]
[BlackElo "2468"]
[Result "1/2-1/2"]
[Round "02"]
[TimeControl "180+2"]
[Date "2023.05.23"]
[WhiteClock "0:00:03"]
[BlackClock "0:00:03"]

1. Nf3 {[%clk 0:03:00]}  g6 {[%clk 0:02:56]} 2. g3 {[%clk 0:02:59]}  Bg7 {[%clk 0:02:56]} 3. Bg2 {[%clk 0:03:00]}  d6 {[%clk 0:02:54]} 4. d4 {[%clk 0:02:58]}  Bd7 {[%clk 0:02:45]} 5. c4 {[%clk 0:02:55]}  Qc8 {[%clk 0:02:44]} 6. Nc3 {[%clk 0:02:55]}  Bh3 {[%clk 0:02:42]} 7. O-O {[%clk 0:02:54]}  h5 {[%clk 0:02:41]} 8. Bxh3 {[%clk 0:02:34]}  Qxh3 {[%clk 0:02:42]} 9. Ng5 {[%clk 0:02:34]}  Qd7 {[%clk 0:02:40]} 10. h4 {[%clk 0:02:31]}  Nc6 {[%clk 0:02:37]} 11. Be3 {[%clk 0:02:27]}  Nf6 {[%clk 0:02:35]} 12. Qd2 {[%clk 0:02:16]}  Ng4 {[%clk 0:02:30]} 13. Nf3 {[%clk 0:02:16]}  O-O {[%clk 0:02:12]} 14. b3 {[%clk 0:02:12]}  Rae8 {[%clk 0:02:06]} 15. Rad1 {[%clk 0:02:07]}  e5 {[%clk 0:01:43]} 16. dxe5 {[%clk 0:02:05]}  Nxe3 {[%clk 0:01:40]} 17. Qxe3 {[%clk 0:02:00]}  Nxe5 {[%clk 0:01:40]} 18. Nxe5 {[%clk 0:01:54]}  Rxe5 {[%clk 0:01:41]} 19. Qd3 {[%clk 0:01:52]}  Rfe8 {[%clk 0:01:39]} 20. e3 {[%clk 0:01:50]}  Qh3 {[%clk 0:01:21]} 21. Nd5 {[%clk 0:01:47]}  g5 {[%clk 0:01:01]} 22. hxg5 {[%clk 0:01:46]}  Rxg5 {[%clk 0:01:01]} 23. Nf4 {[%clk 0:01:45]}  Qg4 {[%clk 0:00:59]} 24. Qe2 {[%clk 0:01:36]}  h4 {[%clk 0:00:57]} 25. Qxg4 {[%clk 0:01:19]}  Rxg4 {[%clk 0:00:58]} 26. Ne2 {[%clk 0:00:56]}  hxg3 {[%clk 0:00:56]} 27. Nxg3 {[%clk 0:00:56]}  Be5 {[%clk 0:00:56]} 28. Kg2 {[%clk 0:00:49]}  Bxg3 {[%clk 0:00:52]} 29. Kf3 {[%clk 0:00:49]}  Rg5 {[%clk 0:00:38]} 30. fxg3 {[%clk 0:00:49]}  Rge5 {[%clk 0:00:38]} 31. Rd3 {[%clk 0:00:42]}  Kg7 {[%clk 0:00:37]} 32. Ke2 {[%clk 0:00:41]}  Rg5 {[%clk 0:00:36]} 33. Rf3 {[%clk 0:00:38]}  Rh8 {[%clk 0:00:36]} 34. Rd2 {[%clk 0:00:29]}  Rh3 {[%clk 0:00:36]} 35. Kf2 {[%clk 0:00:28]}  Rh2+ {[%clk 0:00:37]} 36. Ke1 {[%clk 0:00:28]}  Rh1+ {[%clk 0:00:37]} 37. Kf2 {[%clk 0:00:26]}  Rgh5 {[%clk 0:00:35]} 38. Ke2 {[%clk 0:00:22]}  R5h3 {[%clk 0:00:26]} 39. Kd3 {[%clk 0:00:19]}  R1h2 {[%clk 0:00:19]} 40. Rxh2 {[%clk 0:00:13]}  Rxh2 {[%clk 0:00:20]} 41. a4 {[%clk 0:00:12]}  a5 {[%clk 0:00:20]} 42. Rf5 {[%clk 0:00:12]}  b6 {[%clk 0:00:20]} 43. Rg5+ {[%clk 0:00:12]}  Kf6 {[%clk 0:00:20]} 44. Rg8 {[%clk 0:00:12]}  Ke6 {[%clk 0:00:18]} 45. Rc8 {[%clk 0:00:11]}  Kd7 {[%clk 0:00:19]} 46. Rf8 {[%clk 0:00:11]}  Rf2 {[%clk 0:00:19]} 47. g4 {[%clk 0:00:11]}  Ke7 {[%clk 0:00:19]} 48. Rc8 {[%clk 0:00:11]}  Kd7 {[%clk 0:00:20]} 49. Rf8 {[%clk 0:00:12]}  Kc6 {[%clk 0:00:20]} 50. g5 {[%clk 0:00:11]}  Rf5 {[%clk 0:00:21]} 51. e4 {[%clk 0:00:09]}  Rxg5 {[%clk 0:00:20]} 52. Rxf7 {[%clk 0:00:09]}  Rg3+ {[%clk 0:00:21]} 53. Kc2 {[%clk 0:00:09]}  Re3 {[%clk 0:00:22]} 54. Re7 {[%clk 0:00:09]}  Rh3 {[%clk 0:00:21]} 55. e5 {[%clk 0:00:09]}  Rh2+ {[%clk 0:00:14]} 56. Kc3 {[%clk 0:00:09]}  Rh3+ {[%clk 0:00:15]} 57. Kc2 {[%clk 0:00:09]}  Rg3 {[%clk 0:00:08]} 58. exd6 {[%clk 0:00:09]}  Kxd6 {[%clk 0:00:09]} 59. Rh7 {[%clk 0:00:09]}  c6 {[%clk 0:00:09]} 60. Rh5 {[%clk 0:00:08]}  Re3 {[%clk 0:00:09]} 61. Rg5 {[%clk 0:00:08]}  Re5 {[%clk 0:00:09]} 62. Rxe5 {[%clk 0:00:04]}  Kxe5 {[%clk 0:00:10]} 63. Kd3 {[%clk 0:00:04]}  Kd6 {[%clk 0:00:06]} 64. Kd4 {[%clk 0:00:04]}  Ke6 {[%clk 0:00:07]} 65. Ke4 {[%clk 0:00:04]}  Kd6 {[%clk 0:00:06]} 66. Kd4 {[%clk 0:00:04]}  Ke6 {[%clk 0:00:07]} 67. Ke4 {[%clk 0:00:03]}  Kf6 {[%clk 0:00:03]} 68. Kd4 {[%clk 0:00:03]}  Ke6 {[%clk 0:00:03]} 1/2-1/2


[Site "https://www.chess.com"]

[Event "Titled Tuesday Blitz May 23 Late 2023"]
[White "Talibov, Shiroghlan"]
[Black "Chylewski, Patryk"]
[WhiteFideId "13429078"]
[BlackFideId "1186191"]
[WhiteElo "2188"]
[BlackElo "2163"]
[Result "1-0"]
[Round "02"]
[TimeControl "180+2"]
[Date "2023.05.23"]
[WhiteClock "0:00:37"]
[BlackClock "0:00:02"]

1. a3 {[%clk 0:03:00]}  d5 {[%clk 0:02:58]} 2. Nf3 {[%clk 0:02:59]}  Nf6 {[%clk 0:02:48]} 3. d4 {[%clk 0:02:58]}  c6 {[%clk 0:02:44]} 4. Bf4 {[%clk 0:02:54]}  Bf5 {[%clk 0:02:40]} 5. e3 {[%clk 0:02:55]}  e6 {[%clk 0:02:40]} 6. c4 {[%clk 0:02:53]}  Nbd7 {[%clk 0:02:38]} 7. Nc3 {[%clk 0:02:52]}  Be7 {[%clk 0:02:37]} 8. Bd3 {[%clk 0:02:52]}  Bxd3 {[%clk 0:02:36]} 9. Qxd3 {[%clk 0:02:53]}  O-O {[%clk 0:02:36]} 10. O-O {[%clk 0:02:48]}  dxc4 {[%clk 0:02:18]} 11. Qxc4 {[%clk 0:02:48]}  c5 {[%clk 0:02:12]} 12. dxc5 {[%clk 0:02:47]}  Nxc5 {[%clk 0:02:10]} 13. Rfd1 {[%clk 0:02:47]}  Qc8 {[%clk 0:01:44]} 14. Rac1 {[%clk 0:02:45]}  a6 {[%clk 0:01:34]} 15. Ne5 {[%clk 0:02:41]}  b5 {[%clk 0:01:28]} 16. Qe2 {[%clk 0:02:39]}  Qb7 {[%clk 0:01:28]} 17. b4 {[%clk 0:02:34]}  Nce4 {[%clk 0:01:20]} 18. Nxe4 {[%clk 0:02:15]}  Qxe4 {[%clk 0:01:21]} 19. Nc6 {[%clk 0:02:11]}  Rfe8 {[%clk 0:01:12]} 20. f3 {[%clk 0:02:10]}  Qg6 {[%clk 0:00:34]} 21. Ne5 {[%clk 0:01:58]}  Qh5 {[%clk 0:00:34]} 22. g4 {[%clk 0:01:46]}  Qh3 {[%clk 0:00:33]} 23. Nd3 {[%clk 0:01:43]}  Nd5 {[%clk 0:00:30]} 24. Bg3 {[%clk 0:01:40]}  Qh6 {[%clk 0:00:23]} 25. e4 {[%clk 0:01:39]}  Qe3+ {[%clk 0:00:23]} 26. Kf1 {[%clk 0:01:35]}  Qxe2+ {[%clk 0:00:19]} 27. Kxe2 {[%clk 0:01:36]}  Nb6 {[%clk 0:00:19]} 28. Ne5 {[%clk 0:01:31]}  Bf6 {[%clk 0:00:15]} 29. Rc6 {[%clk 0:01:29]}  Bxe5 {[%clk 0:00:10]} 30. Rxb6 {[%clk 0:01:30]}  Bb2 {[%clk 0:00:09]} 31. Rd3 {[%clk 0:01:27]}  h6 {[%clk 0:00:08]} 32. Be1 {[%clk 0:01:21]}  Rec8 {[%clk 0:00:08]} 33. Rb3 {[%clk 0:01:18]}  Rc2+ {[%clk 0:00:07]} 34. Bd2 {[%clk 0:01:00]}  Rd8 {[%clk 0:00:07]} 35. Rd3 {[%clk 0:00:59]}  Ra8 {[%clk 0:00:02]} 36. Kd1 {[%clk 0:00:57]}  Rc4 {[%clk 0:00:02]} 37. Rb7 {[%clk 0:00:55]}  Bd4 {[%clk 0:00:01]} 38. f4 {[%clk 0:00:53]}  f6 {[%clk 0:00:01]} 39. f5 {[%clk 0:00:53]}  e5 {[%clk 0:00:02]} 40. h4 {[%clk 0:00:51]}  Kf8 {[%clk 0:00:01]} 41. g5 {[%clk 0:00:52]}  hxg5 {[%clk 0:00:02]} 42. hxg5 {[%clk 0:00:51]}  Rac8 {[%clk 0:00:02]} 43. gxf6 {[%clk 0:00:51]}  gxf6 {[%clk 0:00:03]} 44. Rh3 {[%clk 0:00:51]}  Kg8 {[%clk 0:00:03]} 45. Rg3+ {[%clk 0:00:51]}  Kh8 {[%clk 0:00:02]} 46. Rh3+ {[%clk 0:00:52]}  Kg8 {[%clk 0:00:03]} 47. Rhh7 {[%clk 0:00:50]}  Bc3 {[%clk 0:00:01]} 48. Rbg7+ {[%clk 0:00:46]}  Kf8 {[%clk 0:00:02]} 49. Rd7 {[%clk 0:00:47]}  Kg8 {[%clk 0:00:01]} 50. Bh6 {[%clk 0:00:37]}  Bb2 {[%clk 0:00:01]} 51. Rdg7+ {[%clk 0:00:36]}  Kf8 {[%clk 0:00:02]} 52. Rh8# {[%clk 0:00:37]} 1-0


[Site "https://www.chess.com"]

[Event "Titled Tuesday Blitz May 23 Late 2023"]
[White "Danielyan, Vahe"]
[Black "Mahdavi, Reza"]
[WhiteFideId "13304828"]
[BlackFideId "12595926"]
[WhiteElo "2423"]
[BlackElo "2352"]
[Result "1-0"]
[Round "02"]
[TimeControl "180+2"]
[Date "2023.05.23"]
[WhiteClock "0:00:11"]
[BlackClock "0:00:00"]

1. e4 {[%clk 0:02:59]}  c5 {[%clk 0:02:59]} 2. Nc3 {[%clk 0:02:59]}  g6 {[%clk 0:02:58]} 3. d4 {[%clk 0:02:56]}  cxd4 {[%clk 0:02:57]} 4. Qxd4 {[%clk 0:02:57]}  Nf6 {[%clk 0:02:58]} 5. Nf3 {[%clk 0:02:57]}  Nc6 {[%clk 0:02:59]} 6. Qa4 {[%clk 0:02:57]}  d6 {[%clk 0:02:57]} 7. e5 {[%clk 0:02:57]}  dxe5 {[%clk 0:02:58]} 8. Nxe5 {[%clk 0:02:58]}  Bd7 {[%clk 0:02:59]} 9. Nxd7 {[%clk 0:02:57]}  Qxd7 {[%clk 0:02:51]} 10. Bb5 {[%clk 0:02:57]}  Bg7 {[%clk 0:02:51]} 11. Be3 {[%clk 0:02:57]}  O-O {[%clk 0:02:50]} 12. Rd1 {[%clk 0:02:57]}  Qc7 {[%clk 0:02:51]} 13. O-O {[%clk 0:02:56]}  Ne5 {[%clk 0:02:48]} 14. Bf4 {[%clk 0:02:54]}  a6 {[%clk 0:02:46]} 15. Be2 {[%clk 0:02:51]}  Rfd8 {[%clk 0:02:41]} 16. h3 {[%clk 0:02:34]}  b5 {[%clk 0:02:12]} 17. Qb4 {[%clk 0:02:33]}  e6 {[%clk 0:02:05]} 18. a4 {[%clk 0:02:30]}  Bf8 {[%clk 0:01:58]} 19. Qb3 {[%clk 0:02:24]}  b4 {[%clk 0:01:57]} 20. Na2 {[%clk 0:02:12]}  Nd5 {[%clk 0:01:52]} 21. Bg3 {[%clk 0:02:04]}  Rac8 {[%clk 0:01:50]} 22. Bxa6 {[%clk 0:01:57]}  Ra8 {[%clk 0:01:36]} 23. Bb5 {[%clk 0:01:56]}  Bd6 {[%clk 0:01:36]} 24. Rxd5 {[%clk 0:01:55]}  exd5 {[%clk 0:01:36]} 25. Nxb4 {[%clk 0:01:55]}  Qe7 {[%clk 0:00:55]} 26. Nxd5 {[%clk 0:01:54]}  Qe6 {[%clk 0:00:55]} 27. f4 {[%clk 0:01:28]}  Bc5+ {[%clk 0:00:53]} 28. Kh2 {[%clk 0:01:06]}  Rxd5 {[%clk 0:00:30]} 29. fxe5 {[%clk 0:01:03]}  Rd4 {[%clk 0:00:28]} 30. Qf3 {[%clk 0:01:00]}  Rf8 {[%clk 0:00:25]} 31. c3 {[%clk 0:01:00]}  Rd2 {[%clk 0:00:24]} 32. b4 {[%clk 0:00:59]}  Ba7 {[%clk 0:00:24]} 33. c4 {[%clk 0:00:50]}  Bd4 {[%clk 0:00:18]} 34. Qf4 {[%clk 0:00:38]}  Rd3 {[%clk 0:00:18]} 35. c5 {[%clk 0:00:34]}  Rxg3 {[%clk 0:00:15]} 36. Qxd4 {[%clk 0:00:35]}  Ra3 {[%clk 0:00:12]} 37. Bc4 {[%clk 0:00:27]}  Qe7 {[%clk 0:00:12]} 38. e6 {[%clk 0:00:24]}  f5 {[%clk 0:00:12]} 39. Qd6 {[%clk 0:00:21]}  Re8 {[%clk 0:00:12]} 40. Bb5 {[%clk 0:00:16]}  Qxd6+ {[%clk 0:00:04]} 41. cxd6 {[%clk 0:00:16]}  Rxe6 {[%clk 0:00:00]} 42. Rd1 {[%clk 0:00:11]} 1-0


[Site "https://www.chess.com"]

[Event "Titled Tuesday Blitz May 23 Late 2023"]
[White "Krzyzanowski, Marcin"]
[Black "FoxOnTheRun97"]
[WhiteFideId "1132199"]
[WhiteElo "2471"]
[BlackElo "2560"]
[Result "1-0"]
[Round "02"]
[TimeControl "180+2"]
[Date "2023.05.23"]
[WhiteClock "0:00:07"]
[BlackClock "0:00:00"]

1. Nf3 {[%clk 0:03:00]}  Nf6 {[%clk 0:02:59]} 2. g3 {[%clk 0:02:59]}  d5 {[%clk 0:02:58]} 3. Bg2 {[%clk 0:02:58]}  Bf5 {[%clk 0:02:58]} 4. O-O {[%clk 0:02:56]}  h6 {[%clk 0:02:57]} 5. c4 {[%clk 0:02:56]}  c6 {[%clk 0:02:53]} 6. Qb3 {[%clk 0:02:54]}  Qb6 {[%clk 0:02:49]} 7. d3 {[%clk 0:02:53]}  e6 {[%clk 0:02:46]} 8. Be3 {[%clk 0:02:37]}  Qxb3 {[%clk 0:02:42]} 9. axb3 {[%clk 0:02:38]}  a6 {[%clk 0:02:41]} 10. Nc3 {[%clk 0:02:36]}  Nbd7 {[%clk 0:02:39]} 11. Bd4 {[%clk 0:02:14]}  Be7 {[%clk 0:02:19]} 12. Ne5 {[%clk 0:02:02]}  Nxe5 {[%clk 0:02:10]} 13. Bxe5 {[%clk 0:02:02]}  O-O {[%clk 0:02:07]} 14. e4 {[%clk 0:01:57]}  dxe4 {[%clk 0:01:56]} 15. dxe4 {[%clk 0:01:58]}  Bg6 {[%clk 0:01:56]} 16. Rfd1 {[%clk 0:01:55]}  Rfd8 {[%clk 0:01:54]} 17. Bc7 {[%clk 0:01:55]}  Rxd1+ {[%clk 0:01:44]} 18. Rxd1 {[%clk 0:01:55]}  Rc8 {[%clk 0:01:45]} 19. Bb6 {[%clk 0:01:48]}  e5 {[%clk 0:01:12]} 20. f3 {[%clk 0:01:40]}  Kf8 {[%clk 0:01:02]} 21. Bh3 {[%clk 0:01:38]}  Ra8 {[%clk 0:00:55]} 22. Na4 {[%clk 0:01:29]}  Ke8 {[%clk 0:00:34]} 23. Kf2 {[%clk 0:00:56]}  Bd8 {[%clk 0:00:29]} 24. Ke3 {[%clk 0:00:52]}  Bxb6+ {[%clk 0:00:25]} 25. Nxb6 {[%clk 0:00:53]}  Rd8 {[%clk 0:00:25]} 26. Ra1 {[%clk 0:00:37]}  Rb8 {[%clk 0:00:12]} 27. Ra5 {[%clk 0:00:36]}  Kd8 {[%clk 0:00:08]} 28. Rxe5 {[%clk 0:00:35]}  Kc7 {[%clk 0:00:08]} 29. c5 {[%clk 0:00:29]}  Rd8 {[%clk 0:00:08]} 30. Re7+ {[%clk 0:00:27]}  Kb8 {[%clk 0:00:09]} 31. Ke2 {[%clk 0:00:20]}  Bh5 {[%clk 0:00:05]} 32. Bf5 {[%clk 0:00:09]}  Ne8 {[%clk 0:00:02]} 33. Nd7+ {[%clk 0:00:07]}  Ka7 {[%clk 0:00:02]} 34. Ne5 {[%clk 0:00:07]}  f6 {[%clk 0:00:00]} 35. Nxc6+ {[%clk 0:00:07]} 1-0


[Site "https://www.chess.com"]

[Event "Titled Tuesday Blitz May 23 Late 2023"]
[White "Bakalchuk, Johnatan"]
[Black "Khandelwal, Ankush"]
[WhiteFideId "2810301"]
[BlackFideId "413470"]
[WhiteElo "2450"]
[BlackElo "2263"]
[Result "1-0"]
[Round "02"]
[TimeControl "180+2"]
[Date "2023.05.23"]
[WhiteClock "0:00:02"]
[BlackClock "0:00:00"]

1. e4 {[%clk 0:03:00]}  c5 {[%clk 0:02:58]} 2. Nf3 {[%clk 0:03:00]}  d6 {[%clk 0:02:57]} 3. d4 {[%clk 0:03:01]}  cxd4 {[%clk 0:02:56]} 4. Nxd4 {[%clk 0:03:01]}  Nf6 {[%clk 0:02:56]} 5. Nc3 {[%clk 0:03:02]}  a6 {[%clk 0:02:55]} 6. h4 {[%clk 0:02:57]}  e5 {[%clk 0:02:46]} 7. Nb3 {[%clk 0:02:57]}  Be7 {[%clk 0:02:43]} 8. Be2 {[%clk 0:02:47]}  Be6 {[%clk 0:02:24]} 9. f4 {[%clk 0:02:47]}  b5 {[%clk 0:02:20]} 10. f5 {[%clk 0:02:39]}  Bc8 {[%clk 0:01:52]} 11. Be3 {[%clk 0:02:25]}  Bb7 {[%clk 0:01:51]} 12. Bf3 {[%clk 0:02:20]}  b4 {[%clk 0:01:44]} 13. Na4 {[%clk 0:02:20]}  Nbd7 {[%clk 0:01:32]} 14. Qd2 {[%clk 0:01:43]}  a5 {[%clk 0:01:15]} 15. g4 {[%clk 0:01:35]}  Nxe4 {[%clk 0:00:57]} 16. Qg2 {[%clk 0:01:35]}  d5 {[%clk 0:00:31]} 17. O-O-O {[%clk 0:01:31]}  Qc7 {[%clk 0:00:28]} 18. g5 {[%clk 0:00:52]}  Qc6 {[%clk 0:00:23]} 19. Bxe4 {[%clk 0:00:52]}  dxe4 {[%clk 0:00:23]} 20. Rxd7 {[%clk 0:00:52]}  Qxd7 {[%clk 0:00:17]} 21. Nb6 {[%clk 0:00:50]}  Qc7 {[%clk 0:00:12]} 22. f6 {[%clk 0:00:40]}  gxf6 {[%clk 0:00:11]} 23. gxf6 {[%clk 0:00:41]}  Bxf6 {[%clk 0:00:11]} 24. Rf1 {[%clk 0:00:41]}  Bxh4 {[%clk 0:00:07]} 25. Qg7 {[%clk 0:00:26]}  Rf8 {[%clk 0:00:06]} 26. Rf5 {[%clk 0:00:11]}  Be7 {[%clk 0:00:04]} 27. Rxe5 {[%clk 0:00:08]}  Rd8 {[%clk 0:00:03]} 28. Bc5 {[%clk 0:00:06]}  Rd6 {[%clk 0:00:04]} 29. Nc4 {[%clk 0:00:04]}  Rg6 {[%clk 0:00:02]} 30. Qxh7 {[%clk 0:00:01]}  Rg1+ {[%clk 0:00:01]} 31. Bxg1 {[%clk 0:00:01]}  Qxc4 {[%clk 0:00:00]} 32. Bc5 {[%clk 0:00:02]} 1-0


[Site "https://www.chess.com"]

[Event "Titled Tuesday Blitz May 23 Late 2023"]
[White "Bartel, Michal"]
[Black "Bachmann, Axel"]
[WhiteFideId "1119257"]
[BlackFideId "3700488"]
[WhiteElo "2282"]
[BlackElo "2605"]
[Result "0-1"]
[Round "02"]
[TimeControl "180+2"]
[Date "2023.05.23"]
[WhiteClock "0:00:12"]
[BlackClock "0:01:44"]

1. e4 {[%clk 0:03:00]}  Nc6 {[%clk 0:02:59]} 2. Nc3 {[%clk 0:02:59]}  d6 {[%clk 0:02:58]} 3. g3 {[%clk 0:02:59]}  g6 {[%clk 0:02:55]} 4. Bg2 {[%clk 0:02:58]}  Bg7 {[%clk 0:02:56]} 5. Nge2 {[%clk 0:02:58]}  e5 {[%clk 0:02:56]} 6. O-O {[%clk 0:02:57]}  f5 {[%clk 0:02:55]} 7. d3 {[%clk 0:02:57]}  Nf6 {[%clk 0:02:54]} 8. h3 {[%clk 0:02:54]}  O-O {[%clk 0:02:50]} 9. Bg5 {[%clk 0:02:53]}  h6 {[%clk 0:02:45]} 10. Be3 {[%clk 0:02:53]}  f4 {[%clk 0:02:14]} 11. gxf4 {[%clk 0:02:53]}  Nh5 {[%clk 0:02:14]} 12. Qd2 {[%clk 0:02:48]}  Qh4 {[%clk 0:02:06]} 13. fxe5 {[%clk 0:01:59]}  Bxh3 {[%clk 0:02:04]} 14. exd6 {[%clk 0:01:20]}  Qg4 {[%clk 0:01:55]} 15. Ng3 {[%clk 0:01:18]}  Bxg2 {[%clk 0:01:55]} 16. Kxg2 {[%clk 0:01:18]}  Rf3 {[%clk 0:01:56]} 17. Ne2 {[%clk 0:01:12]}  Be5 {[%clk 0:01:50]} 18. Rg1 {[%clk 0:00:17]}  Raf8 {[%clk 0:01:45]} 19. Bxh6 {[%clk 0:00:12]}  Rxf2+ {[%clk 0:01:43]} 20. Kh1 {[%clk 0:00:12]}  Qh3# {[%clk 0:01:44]} 0-1


[Site "https://www.chess.com"]

[Event "Titled Tuesday Blitz May 23 Late 2023"]
[White "Fernandez Guillen, Ernesto J."]
[Black "Plotnikov, Pavel"]
[WhiteFideId "3512428"]
[BlackFideId "4170342"]
[WhiteElo "2429"]
[BlackElo "2298"]
[Result "1-0"]
[Round "02"]
[TimeControl "180+2"]
[Date "2023.05.23"]
[WhiteClock "0:02:14"]
[BlackClock "0:01:46"]

1. e4 {[%clk 0:03:00]}  e6 {[%clk 0:02:49]} 2. Nf3 {[%clk 0:03:00]}  d5 {[%clk 0:02:48]} 3. Nc3 {[%clk 0:03:00]}  Nf6 {[%clk 0:02:48]} 4. e5 {[%clk 0:02:42]}  Ng8 {[%clk 0:02:47]} 5. d4 {[%clk 0:02:42]}  c5 {[%clk 0:02:47]} 6. Ne2 {[%clk 0:02:43]}  Nc6 {[%clk 0:02:45]} 7. c3 {[%clk 0:02:43]}  Nge7 {[%clk 0:02:44]} 8. h4 {[%clk 0:02:42]}  h5 {[%clk 0:02:42]} 9. g3 {[%clk 0:02:41]}  Nf5 {[%clk 0:02:42]} 10. Bh3 {[%clk 0:02:41]}  Qb6 {[%clk 0:02:35]} 11. O-O {[%clk 0:02:40]}  cxd4 {[%clk 0:02:32]} 12. cxd4 {[%clk 0:02:40]}  a5 {[%clk 0:02:27]} 13. Be3 {[%clk 0:02:37]}  a4 {[%clk 0:02:24]} 14. Bxf5 {[%clk 0:02:32]}  exf5 {[%clk 0:02:24]} 15. Nf4 {[%clk 0:02:32]}  Be6 {[%clk 0:02:18]} 16. Ng5 {[%clk 0:02:32]}  Na5 {[%clk 0:02:03]} 17. Rc1 {[%clk 0:02:27]}  Be7 {[%clk 0:01:54]} 18. Ngxe6 {[%clk 0:02:24]}  fxe6 {[%clk 0:01:54]} 19. Ng6 {[%clk 0:02:22]}  Rh7 {[%clk 0:01:50]} 20. Qxa4+ {[%clk 0:02:21]}  Kf7 {[%clk 0:01:48]} 21. Nxe7 {[%clk 0:02:22]}  Kxe7 {[%clk 0:01:48]} 22. Bg5+ {[%clk 0:02:21]}  Kf8 {[%clk 0:01:48]} 23. Qd7 {[%clk 0:02:19]}  Nc6 {[%clk 0:01:47]} 24. Qxe6 {[%clk 0:02:18]}  Qxd4 {[%clk 0:01:47]} 25. Rxc6 {[%clk 0:02:13]}  bxc6 {[%clk 0:01:45]} 26. Be7+ {[%clk 0:02:13]}  Ke8 {[%clk 0:01:45]} 27. Bd6+ {[%clk 0:02:12]}  Kd8 {[%clk 0:01:45]} 28. Qe7+ {[%clk 0:02:13]}  Kc8 {[%clk 0:01:46]} 29. Qc7# {[%clk 0:02:14]} 1-0


[Site "https://www.chess.com"]

[Event "Titled Tuesday Blitz May 23 Late 2023"]
[White "Makridis, Dimitrios"]
[Black "Bernabeu Lopez, Carlos Javier"]
[WhiteFideId "25864475"]
[BlackFideId "2235366"]
[WhiteElo "2277"]
[BlackElo "2344"]
[Result "0-1"]
[Round "02"]
[TimeControl "180+2"]
[Date "2023.05.23"]
[WhiteClock "0:00:11"]
[BlackClock "0:00:40"]

1. e4 {[%clk 0:02:57]}  e5 {[%clk 0:03:00]} 2. d4 {[%clk 0:02:55]}  exd4 {[%clk 0:03:00]} 3. c3 {[%clk 0:02:56]}  d3 {[%clk 0:02:59]} 4. Bxd3 {[%clk 0:02:55]}  Nc6 {[%clk 0:03:00]} 5. f4 {[%clk 0:02:55]}  Bc5 {[%clk 0:03:00]} 6. Nf3 {[%clk 0:02:55]}  d6 {[%clk 0:03:00]} 7. Qe2 {[%clk 0:02:55]}  Nge7 {[%clk 0:03:00]} 8. a4 {[%clk 0:02:55]}  a5 {[%clk 0:02:59]} 9. Be3 {[%clk 0:02:54]}  Bxe3 {[%clk 0:02:59]} 10. Qxe3 {[%clk 0:02:55]}  O-O {[%clk 0:02:59]} 11. O-O {[%clk 0:02:54]}  f5 {[%clk 0:02:59]} 12. Nbd2 {[%clk 0:02:53]}  fxe4 {[%clk 0:02:58]} 13. Nxe4 {[%clk 0:02:52]}  Nd5 {[%clk 0:02:26]} 14. Bc4 {[%clk 0:02:47]}  Be6 {[%clk 0:02:26]} 15. Bxd5 {[%clk 0:02:21]}  Bxd5 {[%clk 0:02:27]} 16. Rad1 {[%clk 0:02:21]}  Bxe4 {[%clk 0:02:25]} 17. Qxe4 {[%clk 0:02:20]}  Qe8 {[%clk 0:02:24]} 18. Qc4+ {[%clk 0:02:02]}  Qf7 {[%clk 0:02:23]} 19. Qb5 {[%clk 0:02:03]}  Rab8 {[%clk 0:02:11]} 20. Ng5 {[%clk 0:01:58]}  Qf5 {[%clk 0:02:11]} 21. Rd5 {[%clk 0:01:56]}  Qd7 {[%clk 0:02:10]} 22. Qd3 {[%clk 0:01:42]}  g6 {[%clk 0:02:06]} 23. f5 {[%clk 0:01:29]}  Qe7 {[%clk 0:01:13]} 24. fxg6 {[%clk 0:01:16]}  Rxf1+ {[%clk 0:01:14]} 25. Kxf1 {[%clk 0:01:16]}  Rf8+ {[%clk 0:01:14]} 26. Nf3 {[%clk 0:01:06]}  Ne5 {[%clk 0:01:14]} 27. gxh7+ {[%clk 0:01:03]}  Kh8 {[%clk 0:01:14]} 28. Qd4 {[%clk 0:00:54]}  Qg7 {[%clk 0:01:03]} 29. Kf2 {[%clk 0:00:18]}  b6 {[%clk 0:00:58]} 30. h3 {[%clk 0:00:16]}  Qg6 {[%clk 0:00:52]} 31. Kg1 {[%clk 0:00:12]}  Rxf3 {[%clk 0:00:46]} 32. Kh1 {[%clk 0:00:04]}  Rf7 {[%clk 0:00:37]} 33. Qe3 {[%clk 0:00:02]}  Rg7 {[%clk 0:00:37]} 34. Rd2 {[%clk 0:00:02]}  Kxh7 {[%clk 0:00:35]} 35. b4 {[%clk 0:00:01]}  Qg5 {[%clk 0:00:34]} 36. Qe4+ {[%clk 0:00:01]}  Qg6 {[%clk 0:00:35]} 37. Qd4 {[%clk 0:00:01]}  Rf7 {[%clk 0:00:33]} 38. bxa5 {[%clk 0:00:01]}  bxa5 {[%clk 0:00:34]} 39. Kh2 {[%clk 0:00:01]}  Qf6 {[%clk 0:00:34]} 40. Qe4+ {[%clk 0:00:01]}  Qf5 {[%clk 0:00:34]} 41. Qd4 {[%clk 0:00:02]}  Qf4+ {[%clk 0:00:34]} 42. Qxf4 {[%clk 0:00:03]}  Rxf4 {[%clk 0:00:35]} 43. Rd5 {[%clk 0:00:03]}  Rxa4 {[%clk 0:00:35]} 44. c4 {[%clk 0:00:04]}  Nxc4 {[%clk 0:00:35]} 45. g4 {[%clk 0:00:04]}  Ne5 {[%clk 0:00:34]} 46. Kg3 {[%clk 0:00:04]}  Kg6 {[%clk 0:00:35]} 47. h4 {[%clk 0:00:04]}  Rxg4+ {[%clk 0:00:36]} 48. Kh3 {[%clk 0:00:05]}  Ra4 {[%clk 0:00:36]} 49. Rb5 {[%clk 0:00:05]}  c5 {[%clk 0:00:35]} 50. Rb8 {[%clk 0:00:06]}  Rd4 {[%clk 0:00:35]} 51. Rg8+ {[%clk 0:00:06]}  Kf7 {[%clk 0:00:35]} 52. Rg1 {[%clk 0:00:06]}  c4 {[%clk 0:00:35]} 53. h5 {[%clk 0:00:07]}  Rd3+ {[%clk 0:00:34]} 54. Kh4 {[%clk 0:00:07]}  Nf3+ {[%clk 0:00:35]} 55. Kg4 {[%clk 0:00:08]}  Nxg1 {[%clk 0:00:36]} 56. h6 {[%clk 0:00:08]}  Rh3 {[%clk 0:00:36]} 57. Kg5 {[%clk 0:00:08]}  c3 {[%clk 0:00:36]} 58. h7 {[%clk 0:00:09]}  c2 {[%clk 0:00:37]} 59. Kf5 {[%clk 0:00:09]}  c1=Q {[%clk 0:00:37]} 60. h8=Q {[%clk 0:00:10]}  Qc2+ {[%clk 0:00:38]} 61. Kg5 {[%clk 0:00:10]}  Rxh8 {[%clk 0:00:38]} 62. Kg4 {[%clk 0:00:11]}  Qg6+ {[%clk 0:00:38]} 63. Kf4 {[%clk 0:00:11]}  Rh4+ {[%clk 0:00:39]} 64. Ke3 {[%clk 0:00:11]}  Qg3+ {[%clk 0:00:40]} 65. Kd2 {[%clk 0:00:11]}  Rd4+ {[%clk 0:00:40]} 66. Kc2 {[%clk 0:00:11]}  Qd3+ {[%clk 0:00:41]} 67. Kb2 {[%clk 0:00:12]}  Rb4+ {[%clk 0:00:41]} 68. Ka2 {[%clk 0:00:11]}  Qb1+ {[%clk 0:00:40]} 0-1


[Site "https://www.chess.com"]